fUSD/lending_fUSD_20260202
["ID","MTS","AMOUNT","RATE_DAILY","PERIOD"]
[404345283,1770070272152,-852.16411838,0.00039547,2]
[404345284,1770070272161,-304.83586519,0.00039547,2]
[404345285,1770070272170,-880.84634434,0.00039547,2]
[404345286,1770070272180,-306.01218695,0.00039547,2]
[404345287,1770070272189,-1077.60902599,0.00039547,2]
[404345288,1770070272197,-369.8742244,0.00039547,2]
[404345289,1770070272206,-516.46654263,0.00039547,2]
[404345290,1770070272216,-304.98391669,0.00039547,2]
[404345291,1770070272225,-852.16411838,0.00039547,2]
[404345292,1770070272237,-304.83586519,0.00039547,2]
[404345293,1770070272246,-880.84634434,0.00039547,2]
[404345294,1770070272255,-306.01218695,0.00039547,2]
[404345295,1770070272264,-1077.60902599,0.00039547,2]
[404345296,1770070272275,-369.8742244,0.00039547,2]
[404345297,1770070272286,-516.46654263,0.00039547,2]
[404345298,1770070272297,-304.98391669,0.00039547,2]
[404345299,1770070272308,-1136.59238039,0.00039547,2]
[404345300,1770070272319,-406.58144894,0.00039547,2]
[404345301,1770070272330,-1173.30436835,0.00039547,2]
[404345302,1770070272341,-408.15039581,0.00039547,2]
[404345303,1770070272352,-1077.60902599,0.00039547,2]
[404345304,1770070272362,-492.05781815,0.00039547,2]
[404345305,1770070272372,-687.07517019,0.00039547,2]
[404345306,1770070272382,-405.73175452,0.00039547,2]
[404345307,1770070272393,-355.97548402,0.00039547,2]
[404345308,1770070272403,-300.0,0.00039547,2]
[404345309,1770070272413,-300.0,0.00039547,2]
[404345310,1770070272423,-852.16411838,0.00039547,2]
[404345311,1770070272432,-304.83586518,0.00039547,2]
[404345312,1770070272443,-300.0,0.00039547,2]
[404345313,1770070272452,-880.84634435,0.00039547,2]
[404345314,1770070272462,-300.0,0.00039547,2]
[404345315,1770070272472,-300.0,0.00039547,2]
[404345316,1770070272481,-300.0,0.00039547,2]
[404345317,1770070272491,-300.0,0.00039547,2]
[404345318,1770070272502,-306.01218694,0.00039547,2]
[404345319,1770070272512,-300.0,0.00039547,2]
[404345320,1770070272522,-300.0,0.00039547,2]
[404345321,1770070272532,-1077.60902599,0.00039547,2]
[404345322,1770070272542,-300.0,0.00039547,2]
[404345323,1770070272551,-300.0,0.00039547,2]
[404345324,1770070272561,-300.0,0.00039547,2]
[404345325,1770070272570,-369.8742244,0.00039547,2]
[404345326,1770070272579,-300.0,0.00039547,2]
[404345327,1770070272589,-300.0,0.00039547,2]
[404345328,1770070272598,-300.0,0.00039547,2]
[404345329,1770070272608,-300.0,0.00039547,2]
[404345330,1770070272618,-300.0,0.00039547,2]
[404345331,1770070272627,-300.0,0.00039547,2]
[404345332,1770070272636,-516.46654263,0.00039547,2]
[404345333,1770070272645,-304.98391669,0.00039547,2]
[404345334,1770070272655,-300.0,0.00039547,2]
[404345335,1770070272664,-300.0,0.00039547,2]
[404345336,1770070272673,-300.0,0.00039547,2]
[404345337,1770070272682,-300.0,0.00039547,2]
[404345338,1770070272693,-300.0,0.00039547,2]
[404345339,1770070272702,-300.0,0.00039547,2]
[404345340,1770070272711,-524.22346449,0.00039547,2]
[404345341,1770070272720,-300.00000001,0.00039547,2]
[404345342,1770070272731,-300.0,0.00039547,2]
[404345343,1770070272742,-300.0,0.00039547,2]
[404345344,1770070272752,-300.0,0.00039547,2]
[404345345,1770070272762,-300.0,0.00039547,2]
[404345346,1770070272772,-852.16411838,0.00039547,2]
[404345347,1770070272781,-304.8358652,0.00039547,2]
[404345348,1770070272791,-300.0,0.00039547,2]
[404345349,1770070272801,-880.84634433,0.00039547,2]
[404345350,1770070272811,-300.0,0.00039547,2]
[404345351,1770070272821,-300.0,0.00039547,2]
[404345352,1770070272830,-300.0,0.00039547,2]
[404345353,1770070272839,-300.0,0.00039547,2]
[404345354,1770070272848,-306.01218696,0.00039547,2]
[404345355,1770070272858,-300.0,0.00039547,2]
[404345356,1770070272868,-300.0,0.00039547,2]
[404345357,1770070272877,-1077.60902599,0.00039547,2]
[404345358,1770070272887,-402.50810105,0.00039547,2]
[404345359,1770070272896,-300.0,0.00039547,2]
[404345360,1770070272906,-300.0,0.00039547,2]
[404345361,1770070272915,-369.8742244,0.00039547,2]
[404345362,1770070272924,-300.0,0.00039547,2]
[404345363,1770070272933,-300.0,0.00039547,2]
[404345364,1770070272943,-300.0,0.00039547,2]
[404345365,1770070272952,-300.0,0.00039547,2]
[404345366,1770070272961,-300.0,0.00039547,2]
[404345367,1770070272970,-300.0,0.00039547,2]
[404345368,1770070272980,-516.46654263,0.00039547,2]
[404345369,1770070272989,-304.98391669,0.00039547,2]
[404345370,1770070272998,-300.0,0.00039547,2]
[404345371,1770070273007,-300.0,0.00039547,2]
[404345372,1770070273016,-300.0,0.00039547,2]
[404345373,1770070273026,-300.0,0.00039547,2]
[404345374,1770070273036,-300.0,0.00039547,2]
[404345375,1770070273045,-300.0,0.00039547,2]
[404345376,1770070273054,-524.22346449,0.00039547,2]
[404345377,1770070273064,-300.0,0.00039547,2]
[404345378,1770070273074,-302.00734899,0.00039547,2]
[404345379,1770070273083,-300.0,0.00039547,2]
[404345380,1770070273092,-300.0,0.00039547,2]
[404345381,1770070273101,-300.0,0.00039547,2]
[404345382,1770070273111,-300.0,0.00039547,2]
[404345383,1770070273122,-852.16411838,0.00039547,2]
[404345384,1770070273131,-304.83586518,0.00039547,2]
[404345385,1770070273140,-300.0,0.00039547,2]
[404345386,1770070273150,-880.84634435,0.00039547,2]
[404345387,1770070273159,-300.0,0.00039547,2]
[404345388,1770070273168,-300.0,0.00039547,2]
[404345389,1770070273178,-300.0,0.00039547,2]
[404345390,1770070273188,-300.0,0.00039547,2]
[404345391,1770070273198,-306.01218694,0.00039547,2]
[404345392,1770070273207,-300.0,0.00039547,2]
[404345393,1770070273217,-300.0,0.00039547,2]
[404345394,1770070273228,-1077.60902599,0.00039547,2]
[404345395,1770070273240,-300.0,0.00039547,2]
[404345396,1770070273249,-300.0,0.00039547,2]
[404345397,1770070273259,-369.8742244,0.00039547,2]
[404345398,1770070273270,-300.0,0.00039547,2]
[404345399,1770070273280,-300.0,0.00039547,2]
[404345400,1770070273291,-300.0,0.00039547,2]
[404345401,1770070273301,-300.0,0.00039547,2]
[404345402,1770070273313,-300.0,0.00039547,2]
[404345403,1770070273322,-300.0,0.00039547,2]
[404345404,1770070273332,-516.46654263,0.00039547,2]
[404345405,1770070273341,-304.98391669,0.00039547,2]
[404345406,1770070273351,-300.0,0.00039547,2]
[404345407,1770070273360,-300.0,0.00039547,2]
[404345408,1770070273370,-300.0,0.00039547,2]
[404345409,1770070273380,-300.0,0.00039547,2]
[404345410,1770070273390,-300.0,0.00039547,2]
[404345411,1770070273399,-300.0,0.00039547,2]
[404345412,1770070273408,-300.0,0.00039547,2]
[404345413,1770070273417,-524.22346449,0.00039547,2]
[404345414,1770070273427,-300.0,0.00039547,2]
[404345415,1770070273436,-300.0,0.00039547,2]
[404345416,1770070273445,-300.0,0.00039547,2]
[404345417,1770070273455,-300.0,0.00039547,2]
[404345418,1770070273464,-852.16411838,0.00039547,2]
[404345419,1770070273474,-304.8358652,0.00039547,2]
[404345420,1770070273483,-300.0,0.00039547,2]
[404345421,1770070273492,-880.84634433,0.00039547,2]
[404345422,1770070273502,-300.0,0.00039547,2]
[404345423,1770070273512,-300.0,0.00039547,2]
[404345424,1770070273524,-300.0,0.00039547,2]
[404345425,1770070273533,-300.0,0.00039547,2]
[404345426,1770070273543,-306.01218696,0.00039547,2]
[404345427,1770070273552,-300.0,0.00039547,2]
[404345428,1770070273561,-300.0,0.00039547,2]
[404345429,1770070273570,-1077.60902599,0.00039547,2]
[404345430,1770070273579,-300.0,0.00039547,2]
[404345431,1770070273589,-300.0,0.00039547,2]
[404345432,1770070273599,-369.8742244,0.00039547,2]
[404345433,1770070273608,-300.0,0.00039547,2]
[404345434,1770070273617,-300.0,0.00039547,2]
[404345435,1770070273627,-300.0,0.00039547,2]
[404345436,1770070273637,-300.0,0.00039547,2]
[404345437,1770070273647,-300.0,0.00039547,2]
[404345438,1770070273656,-300.0,0.00039547,2]
[404345439,1770070273665,-516.46654263,0.00039547,2]
[404345440,1770070273675,-304.98391669,0.00039547,2]
[404345441,1770070273684,-300.0,0.00039547,2]
[404345442,1770070273693,-300.0,0.00039547,2]
[404345443,1770070273703,-300.0,0.00039547,2]
[404345444,1770070273712,-300.0,0.00039547,2]
[404345445,1770070273722,-300.0,0.00039547,2]
[404345446,1770070273731,-300.0,0.00039547,2]
[404345447,1770070273740,-524.22346449,0.00039547,2]
[404345448,1770070273749,-300.0,0.00039547,2]
[404345449,1770070273759,-300.0,0.00039547,2]
[404345450,1770070273769,-300.0,0.00039547,2]
[404345451,1770070273778,-300.0,0.00039547,2]
[404345452,1770070273788,-300.0,0.00039547,2]
[404345453,1770070273797,-852.16411838,0.00039547,2]
[404345454,1770070273807,-304.83586518,0.00039547,2]
[404345455,1770070273817,-300.0,0.00039547,2]
[404345456,1770070273827,-880.84634435,0.00039547,2]
[404345457,1770070273838,-300.0,0.00039547,2]
[404345458,1770070273848,-300.0,0.00039547,2]
[404345459,1770070273857,-300.0,0.00039547,2]
[404345460,1770070273867,-300.0,0.00039547,2]
[404345461,1770070273876,-306.01218694,0.00039547,2]
[404345462,1770070273886,-300.0,0.00039547,2]
[404345463,1770070273896,-1077.60902599,0.00039547,2]
[404345464,1770070273906,-300.0,0.00039547,2]
[404345465,1770070273917,-300.0,0.00039547,2]
[404345466,1770070273926,-300.0,0.00039547,2]
[404345467,1770070273935,-369.8742244,0.00039547,2]
[404345468,1770070273944,-300.0,0.00039547,2]
[404345469,1770070273953,-300.0,0.00039547,2]
[404345470,1770070273962,-300.0,0.00039547,2]
[404345471,1770070273971,-300.0,0.00039547,2]
[404345472,1770070273981,-300.0,0.00039547,2]
[404345473,1770070273992,-300.0,0.00039547,2]
[404345474,1770070274001,-516.46654263,0.00039547,2]
[404345475,1770070274010,-304.98391669,0.00039547,2]
[404345476,1770070274021,-300.0,0.00039547,2]
[404345477,1770070274030,-300.0,0.00039547,2]
[404345478,1770070274040,-300.0,0.00039547,2]
[404345479,1770070274050,-300.0,0.00039547,2]
[404345480,1770070274060,-300.0,0.00039547,2]
[404345481,1770070274070,-300.0,0.00039547,2]
[404345482,1770070274080,-524.22346449,0.00039547,2]
[404345483,1770070274090,-300.0,0.00039547,2]
[404345484,1770070274100,-300.0,0.00039547,2]
[404345485,1770070274110,-300.0,0.00039547,2]
[404345486,1770070274120,-300.0,0.00039547,2]
[404345487,1770070274131,-300.0,0.00039547,2]
[404345488,1770070274140,-852.16411838,0.00039547,2]
[404345489,1770070274150,-304.8358652,0.00039547,2]
[404345490,1770070274160,-300.0,0.00039547,2]
[404345491,1770070274170,-880.84634433,0.00039547,2]
[404345492,1770070274179,-300.0,0.00039547,2]
[404345493,1770070274188,-300.0,0.00039547,2]
[404345494,1770070274199,-300.0,0.00039547,2]
[404345495,1770070274208,-300.0,0.00039547,2]
[404345496,1770070274220,-306.01218696,0.00039547,2]
[404345497,1770070274232,-300.0,0.00039547,2]
[404345498,1770070274243,-300.0,0.00039547,2]
[404345499,1770070274251,-1077.60902599,0.00039547,2]
[404345500,1770070274260,-300.0,0.00039547,2]
[404345501,1770070274269,-300.0,0.00039547,2]
[404345502,1770070274282,-369.8742244,0.00039547,2]
[404345503,1770070274292,-300.0,0.00039547,2]
[404345504,1770070274303,-300.0,0.00039547,2]
[404345505,1770070274312,-300.0,0.00039547,2]
[404345506,1770070274321,-300.0,0.00039547,2]
[404345507,1770070274330,-300.0,0.00039547,2]
[404345508,1770070274339,-300.0,0.00039547,2]
[404345509,1770070274348,-516.46654263,0.00039547,2]
[404345510,1770070274357,-304.98391669,0.00039547,2]
[404345511,1770070274367,-300.0,0.00039547,2]
[404345512,1770070274376,-300.0,0.00039547,2]
[404345513,1770070274386,-300.0,0.00039547,2]
[404345514,1770070274396,-300.0,0.00039547,2]
[404345515,1770070274406,-300.0,0.00039547,2]
[404345516,1770070274415,-300.0,0.00039547,2]
[404345517,1770070274424,-435.56461905,0.00039547,2]
[404345518,1770070274433,-300.0,0.00039547,2]
[404345519,1770070274444,-300.0,0.00039547,2]
[404345520,1770070274455,-300.0,0.00039547,2]
[404345521,1770070274465,-300.0,0.00039547,2]
[404345522,1770070274476,-300.0,0.00039547,2]
[404345523,1770070274486,-852.16411838,0.00039547,2]
[404345524,1770070274496,-304.83586518,0.00039547,2]
[404345525,1770070274505,-300.0,0.00039547,2]
[404345526,1770070274515,-880.84634435,0.00039547,2]
[404345527,1770070274525,-300.0,0.00039547,2]
[404345528,1770070274535,-300.0,0.00039547,2]
[404345529,1770070274544,-300.0,0.00039547,2]
[404345530,1770070274554,-300.0,0.00039547,2]
[404345531,1770070274565,-306.01218694,0.00039547,2]
[404345532,1770070274574,-300.0,0.00039547,2]
[404345533,1770070274584,-300.0,0.00039547,2]
[404345534,1770070274593,-1077.60902599,0.00039547,2]
[404345535,1770070274603,-300.0,0.00039547,2]
[404345536,1770070274612,-300.0,0.00039547,2]
[404345537,1770070274622,-369.8742244,0.00039547,2]
[404345538,1770070274631,-300.0,0.00039547,2]
[404345539,1770070274640,-300.0,0.00039547,2]
[404345540,1770070274650,-300.0,0.00039547,2]
[404345541,1770070274659,-300.0,0.00039547,2]
[404345542,1770070274670,-300.0,0.00039547,2]
[404345543,1770070274680,-300.0,0.00039547,2]
[404345544,1770070274691,-516.46654263,0.00039547,2]
[404345545,1770070274702,-304.98391669,0.00039547,2]
[404345546,1770070274712,-300.0,0.00039547,2]
[404345547,1770070274722,-300.0,0.00039547,2]
[404345548,1770070274732,-300.0,0.00039547,2]
[404345549,1770070274741,-300.0,0.00039547,2]
[404345550,1770070274751,-300.0,0.00039547,2]
[404345551,1770070274761,-300.0,0.00039547,2]
[404345552,1770070274772,-300.0,0.00039547,2]
[404345553,1770070274782,-300.0,0.00039547,2]
[404345554,1770070274792,-300.0,0.00039547,2]
[404345555,1770070274803,-300.0,0.00039547,2]
[404345556,1770070274812,-300.0,0.00039547,2]
[404345557,1770070274822,-852.16411838,0.00039547,2]
[404345558,1770070274831,-304.8358652,0.00039547,2]
[404345559,1770070274841,-300.0,0.00039547,2]
[404345560,1770070274850,-880.84634433,0.00039547,2]
[404345561,1770070274860,-300.0,0.00039547,2]
[404345562,1770070274870,-300.0,0.00039547,2]
[404345563,1770070274880,-300.0,0.00039547,2]
[404345564,1770070274890,-300.0,0.00039547,2]
[404345565,1770070274899,-306.01218696,0.00039547,2]
[404345566,1770070274908,-300.0,0.00039547,2]
[404345567,1770070274918,-300.0,0.00039547,2]
[404345568,1770070274928,-1077.60902599,0.00039547,2]
[404345569,1770070274937,-300.0,0.00039547,2]
[404345570,1770070274947,-300.0,0.00039547,2]
[404345571,1770070274956,-369.8742244,0.00039547,2]
[404345572,1770070274966,-300.0,0.00039547,2]
[404345573,1770070274975,-300.0,0.00039547,2]
[404345574,1770070274984,-300.0,0.00039547,2]
[404345575,1770070274993,-300.0,0.00039547,2]
[404345576,1770070275003,-300.0,0.00039547,2]
[404345577,1770070275012,-300.0,0.00039547,2]
[404345578,1770070275021,-516.46654263,0.00039547,2]
[404345579,1770070275031,-304.98391669,0.00039547,2]
[404345580,1770070275040,-300.0,0.00039547,2]
[404345581,1770070275051,-300.0,0.00039547,2]
[404345582,1770070275061,-300.0,0.00039547,2]
[404345583,1770070275071,-300.0,0.00039547,2]
[404345584,1770070275080,-300.0,0.00039547,2]
[404345585,1770070275090,-300.0,0.00039547,2]
[404345586,1770070275100,-300.0,0.00039547,2]
[404345587,1770070275110,-300.0,0.00039547,2]
[404345588,1770070275120,-300.0,0.00039547,2]
[404345589,1770070275130,-300.0,0.00039547,2]
[404345590,1770070275139,-321.89146792,0.00039547,2]
[404345591,1770070275149,-852.16411838,0.00039547,2]
[404345592,1770070275158,-304.83586518,0.00039547,2]
[404345593,1770070275167,-880.84634435,0.00039547,2]
[404345594,1770070275177,-376.42634886,0.00039547,2]
[404345595,1770070275186,-300.0,0.00039547,2]
[404345596,1770070275197,-421.27605424,0.00039547,2]
[404345597,1770070275208,-488.35034548,0.00039547,2]
[404345598,1770070275218,-306.01218694,0.00039547,2]
[404345599,1770070275230,-301.27129444,0.00039547,2]
[404345600,1770070275245,-532.64468197,0.00039547,2]
[404345601,1770070275255,-1077.60902599,0.00039547,2]
[404345602,1770070275266,-300.0,0.00039547,2]
[404345603,1770070275278,-563.46605179,0.00039547,2]
[404345604,1770070275288,-369.8742244,0.00039547,2]
[404345605,1770070275297,-300.0,0.00039547,2]
[404345606,1770070275308,-300.0,0.00039547,2]
[404345607,1770070275317,-376.35967308,0.00039547,2]
[404345608,1770070275327,-300.0,0.00039547,2]
[404345609,1770070275336,-300.0,0.00039547,2]
[404345610,1770070275346,-300.0,0.00039547,2]
[404345611,1770070275356,-516.46654263,0.00039547,2]
[404345612,1770070275367,-304.98391669,0.00039547,2]
[404345613,1770070275376,-521.95422452,0.00039547,2]
[404345614,1770070275386,-300.0,0.00039547,2]
[404345615,1770070275396,-300.0,0.00039547,2]
[404345616,1770070275406,-494.68097724,0.00039547,2]
[404345617,1770070275415,-300.0,0.00039547,2]
[404345618,1770070275425,-511.57490895,0.00039547,2]
[404345619,1770070275435,-303.84648313,0.00039547,2]
[404345620,1770070275444,-324.8024851,0.00039547,2]
[404345621,1770070275454,-300.0,0.00039547,2]
[404345622,1770070275464,-300.0,0.00039547,2]
[404345623,1770070275473,-852.16411838,0.00039547,2]
[404345624,1770070275483,-304.8358652,0.00039547,2]
[404345625,1770070275492,-349.16742626,0.00039547,2]
[404345626,1770070275502,-880.84634433,0.00039547,2]
[404345627,1770070275512,-570.49068369,0.00039547,2]
[404345628,1770070275521,-306.01218696,0.00039547,2]
[404345629,1770070275531,-1077.60902599,0.00039547,2]
[404345630,1770070275540,-300.0,0.00039547,2]
[404345631,1770070275550,-369.8742244,0.00039547,2]
[404345632,1770070275560,-300.0,0.00039547,2]
[404345633,1770070275569,-325.80338669,0.00039547,2]
[404345634,1770070275579,-300.0,0.00039547,2]
[404345635,1770070275589,-402.37643021,0.00039547,2]
[404345636,1770070275598,-300.0,0.00039547,2]
[404345637,1770070275608,-469.55,0.00039568,2]
[404345638,1770070275619,-180.29,0.00039568,2]
[404345639,1770070275629,-686.76,0.00039568,2]
[404345640,1770070275639,-465.77,0.00039568,2]
[404345641,1770070275650,-559.85,0.00039568,2]
[404345642,1770070275660,-559.85,0.00039568,2]
[404345643,1770070275669,-559.85,0.00039568,2]
[404345644,1770070275679,-559.85,0.00039568,2]
[404345645,1770070275689,-150.0,0.00039573,7]
[404345646,1770070275699,-150.0,0.0003962,7]
[404345647,1770070275709,-150.0,0.00039627,7]
[404345648,1770070275719,-150.0,0.00039639,7]
[404345649,1770070275729,-500.0,0.00039644,2]
[404345650,1770070275738,-150.0,0.00039657,7]
[404345651,1770070275748,-150.0,0.00039677,7]
[404345652,1770070275758,-150.0,0.00039681,7]
[404345653,1770070275768,-150.0,0.00039703,7]
[404345654,1770070275777,-150.0,0.00039719,7]
[404345655,1770070275788,-633.82777347,0.00039726,15]
[404345656,1770070275798,-150.0,0.00039734,7]
[404345657,1770070275808,-150.0,0.00039739,7]
[404345658,1770070275817,-150.0,0.00039757,7]
[404345659,1770070275827,-150.0,0.00039788,7]
[404345660,1770070275837,-150.0,0.00039794,7]
[404345661,1770070275846,-150.0,0.00039819,7]
[404345662,1770070275856,-150.0,0.00039834,7]
[404345663,1770070275866,-1000.0,0.00039834,2]
[404345664,1770070275876,-150.0,0.00039841,7]
[404345665,1770070275887,-250.0,0.00039848,5]
[404345666,1770070275896,-163.0,0.00039871,90]
[404345667,1770070275906,-150.0,0.00039876,7]
[404345668,1770070275915,-150.0,0.00039886,7]
[404345669,1770070275925,-150.0,0.00039886,7]
[404345670,1770070275935,-503.0,0.0003989,21]
[404345671,1770070275945,-150.0,0.00039895,7]
[404345672,1770070275954,-5000.0,0.000399,2]
[404345673,1770070275964,-150.0,0.00039919,7]
[404345674,1770070275973,-150.0,0.00039932,7]
[404345675,1770070275983,-150.0,0.00039948,7]
[404345676,1770070275993,-150.0,0.00039959,7]
[404345677,1770070276002,-150.0,0.00039959,7]
[404345678,1770070276011,-152.0,0.0003997,7]
[404345679,1770070276021,-80927.87573015,0.0003998,2]
[404345680,1770070276031,-151.0,0.0003998,120]
[404345681,1770070276041,-157.079604,0.0003998,120]
[404345682,1770070276050,-151.0,0.0003998,120]
[404345683,1770070276060,-157.079604,0.0003998,120]
[404345684,1770070276069,-157.079604,0.0003998,120]
[404345685,1770070276079,-157.079604,0.0003998,120]
[404345686,1770070276089,-822.14894,0.0003998,120]
[404345687,1770070276099,-822.14894,0.0003998,120]
[404345688,1770070276109,-822.14894,0.0003998,120]
[404345689,1770070276119,-187.437171,0.0003998,120]
[404345690,1770070276128,-822.14894,0.0003998,120]
[404345691,1770070276137,-173.41104,0.0003998,120]
[404345692,1770070276147,-173.41104,0.0003998,120]
[404345693,1770070276156,-173.41104,0.0003998,120]
[404345694,1770070276166,-173.41104,0.0003998,120]
[404345695,1770070276175,-151.0,0.0003998,120]
[404345696,1770070276184,-151.0,0.0003998,120]
[404345697,1770070276194,-150.0,0.0003999,7]
[404345698,1770070276203,-150.0,0.00039995,7]
[404345699,1770070276213,-250.0,0.00039999,40]
[404345700,1770070276223,-250.0,0.00039999,40]
[404345701,1770070276235,-500.0,0.00039999,40]
[404345702,1770070276245,-151.0,0.00039999,40]
[404345703,1770070276255,-194.72792766,0.00039999,40]
[404345704,1770070276267,-276.21309683,0.00039999,40]
[404345705,1770070276278,-500.0,0.00039999,40]
[404345706,1770070276289,-500.0,0.00039999,40]
[404345707,1770070276301,-1328.27659266,0.00039999,40]
[404345708,1770070276311,-160.0,0.00039999,40]
[404345709,1770070276320,-250.0,0.00039999,40]
[404345710,1770070276331,-194.72792766,0.00039999,40]
[404345711,1770070276341,-670.58624095,0.00039999,40]
[404345712,1770070276352,-500.0,0.00039999,40]
[404345713,1770070276362,-799.54513345,0.00039999,40]
[404345714,1770070276371,-500.0,0.00039999,40]
[404345715,1770070276381,-250.0,0.00039999,40]
[404345716,1770070276390,-194.72792766,0.00039999,40]
[404345717,1770070276401,-4675.37398259,0.0004,2]
[404345718,1770070276411,-389.70026197,0.0004,2]
[404345719,1770070276420,-1557.38366422,0.0004,2]
[404345720,1770070276429,-218.40883287,0.0004,2]
[404345721,1770070276439,-453.03905008,0.0004,2]
[404345722,1770070276448,-314.27156421,0.0004,2]
[404345723,1770070276458,-10667.11731022,0.0004,2]
[404345724,1770070276467,-200.73593098,0.0004,2]
[404345725,1770070276478,-250.0,0.0004,45]
[404345726,1770070276487,-250.0,0.0004,45]
[404345727,1770070276497,-250.0,0.0004,45]
[404345728,1770070276507,-153.0,0.0004,120]
[404345729,1770070276516,-250.0,0.0004,45]
[404345730,1770070276526,-250.0,0.0004,45]
[404345731,1770070276536,-151.0,0.0004,120]
[404345732,1770070276545,-200.0,0.0004,120]
[404345733,1770070276555,-395.17421009,0.0004,120]
[404345734,1770070276566,-506.56422453,0.0004,120]
[404345735,1770070276575,-511.7915846,0.0004,10]
[404345736,1770070276585,-985.0,0.0004,120]
[404345737,1770070276596,-151.25,0.0004,14]
[404345738,1770070276606,-161.37231858,0.0004,2]
[404345739,1770070276616,-5012.10948578,0.0004,2]
[404345740,1770070276626,-276.79,0.0004,120]
[404345741,1770070276635,-344.07,0.0004,120]
[404345742,1770070276645,-654.25,0.0004,120]
[404345743,1770070276655,-219.16,0.0004,120]
[404345744,1770070276664,-253.0,0.0004,30]
[404345745,1770070276675,-600.0,0.0004,2]
[404345746,1770070276684,-150.0,0.00040002,7]
[404345747,1770070276694,-150.0,0.00040019,7]
[404345748,1770070276704,-150.0,0.00040055,7]
[404345749,1770070276917,-150.0,0.00040069,7]
[404345750,1770070276938,-150.0,0.00040069,7]
[404345751,1770070276947,-1233.94,0.00040073,2]
[404345752,1770070276957,-150.0,0.00040109,7]
[404345753,1770070276966,-150.0,0.00040113,7]
[404345754,1770070276976,-150.0,0.00040119,7]
[404345755,1770070276985,-150.0,0.00040147,7]
[404345756,1770070276994,-150.0,0.00040147,7]
[404345757,1770070277003,-150.0,0.00040163,7]
[404345758,1770070277013,-150.0,0.00040179,7]
[404345759,1770070277022,-150.0,0.00040206,7]
[404345760,1770070277031,-42546.74303907,0.00040207,2]
[404345761,1770070277040,-150.0,0.00040216,7]
[404345762,1770070277049,-150.0,0.00040218,7]
[404345763,1770070277058,-150.0,0.00040232,7]
[404345764,1770070277067,-150.0,0.00040252,7]
[404345765,1770070277077,-150.0,0.00040252,7]
[404345766,1770070277087,-1103.39,0.00040266,2]
[404345767,1770070277096,-150.0,0.0004027,7]
[404345768,1770070277106,-383.99,0.000403,14]
[404345769,1770070277115,-4777.19,0.000403,30]
[404345770,1770070277124,-300.0,0.00040303,2]
[404345771,1770070277133,-300.42,0.00040303,2]
[404345772,1770070277142,-150.0,0.00040304,7]
[404345773,1770070277152,-150.0,0.00040318,7]
[404345774,1770070277161,-150.0,0.00040323,7]
[404345775,1770070277171,-150.0,0.00040343,7]
[404345776,1770070277180,-150.0,0.00040351,7]
[404345777,1770070277189,-157.7,0.00040364,2]
[404345778,1770070277198,-150.0,0.00040364,2]
[404345779,1770070277208,-180.29,0.00040364,2]
[404345780,1770070277219,-172.53,0.00040364,2]
[404345781,1770070277234,-172.53,0.00040367,2]
[404345782,1770070277243,-172.53,0.00040367,2]